lending/lending_fUSD_20240705
["ID","MTS","AMOUNT","RATE_DAILY","PERIOD"]
[331293216,1720189849928,-598.83558084,0.00022199,2]
[331293217,1720189849937,-793.07193784,0.00022211,2]
[331293218,1720189849946,-150.0,0.0002222,4]
[331293219,1720189849956,-327.37681566,0.00022317,2]
[331293220,1720189849965,-150.0,0.00022495,2]
[331293221,1720189849974,-437.03722,0.0002274,2]
[331293222,1720189849983,-11683.32736513,0.00022759,2]
[331293223,1720189849993,-197.03,0.00022786,2]
[331293224,1720189850005,-35795.878651,0.0002288,3]
[331293225,1720189850014,-749.10443427,0.0002289,2]
[331293226,1720189850024,-366.74562026,0.0002289,2]
[331293227,1720189850033,-645.98797826,0.0002289,2]
[331293228,1720189850047,-111717.7248,0.0002289,2]
[331293229,1720189850057,-35415.3911,0.0002289,2]
[331293230,1720189850066,-881.4147,0.0002289,2]
[331293231,1720189850076,-7500.0,0.0002289,2]
[331293232,1720189850087,-2000.0,0.000229,2]
[331293233,1720189850096,-257.0,0.000229,2]
[331293234,1720189850106,-8948.96966276,0.0002296,3]
[331293235,1720189850115,-27212.3183025,0.0002296,3]
[331293236,1720189850126,-151.41,0.0002296,2]
[331293237,1720189850136,-223724.241569,0.0002297,3]
[331293238,1720189850145,-274.12531633,0.00022973,2]
[331293239,1720189850155,-9070.77276751,0.00022974,3]
[331293240,1720189850164,-40333.43284772,0.0002298,3]
[331293241,1720189850177,-6069.95208001,0.0002298,3]
[331293242,1720189850189,-415.78114589,0.0002298,3]
[331293243,1720189886784,-155.0,0.00014566,2]
[331293244,1720189888117,-2557.97699715,0.00014566,2]
[331293245,1720189889890,-758.11499998,0.00014566,2]
[331293246,1720189891454,-420.80156831,0.00014566,2]
[331293247,1720189892097,-155.0,0.00014566,2]
[331293248,1720189892568,-889.1903469,0.00014566,2]
[331293249,1720189892597,-160.27013735,0.00014566,2]
[331293250,1720189892624,-275.56259237,0.00014566,2]
[331293251,1720189892653,-1282.9136558,0.00014566,2]
[331293252,1720189892681,-28098.34658947,0.00014566,2]
[331293253,1720189892708,-158.97694807,0.00014566,2]
[331293254,1720189892735,-227.17477303,0.00014566,2]
[331293255,1720189892760,-195.55036284,0.00014566,2]
[331293256,1720189892791,-155.0,0.00014566,2]
[331293257,1720189892818,-2605.3,0.00014566,2]
[331293258,1720189892848,-627.12487314,0.00014566,2]
[331293259,1720189892875,-3026.88693848,0.00014566,2]
[331293260,1720189892903,-3969.29324801,0.00015,2]
[331293261,1720189916323,1095.1773,0.00013899,2]
[331293263,1720189937516,2557.97699715,0.00013899,2]
[331293264,1720190027146,50628.36167195,0.00014,2]
[331293265,1720190106974,2178.62382473,6.94e-05,2]
[331293266,1720190156911,754.30269888,0.0001,2]
[331293267,1720190173685,155.0,8.412e-05,2]
[331293268,1720190175411,1015.60585772,8.412e-05,2]
[331293269,1720190177339,2557.97699715,6.94e-05,2]
[331293270,1720190185746,1500.0,8.412e-05,2]
[331293271,1720190220303,2557.97699715,0.00010196,2]
[331293272,1720190226626,56599.9957043,0.000112,2]
[331293273,1720190227234,464.40095637,0.00010196,2]
[331293275,1720190246997,244.11265978,0.000101,2]
[331293279,1720190302803,18227.5234383,0.0001,2]
[331293280,1720190304454,179.90288907,0.00011199,2]
[331293282,1720190335896,2557.97699715,0.0001,2]
[331293283,1720190336356,966092.15713908,0.000225,120]
[331293284,1720190336393,103715.12406713,0.000225,120]
[331293286,1720190358596,833.28128399,0.00011199,2]
[331293288,1720190391261,155.0,0.00011199,2]
[331293290,1720190404744,150.0,0.00011199,2]
[331293291,1720190404844,150.0,0.00011199,2]
[331293292,1720190404931,150.0,0.00011199,2]
[331293293,1720190405025,150.0,0.00011199,2]
[331293294,1720190405179,150.0,0.00011199,2]
[331293295,1720190405394,150.0,0.00011199,2]
[331293296,1720190405599,150.0,0.00011199,2]
[331293297,1720190405810,150.0,0.00011199,2]
[331293298,1720190406263,150.0,0.00011199,2]
[331293299,1720190406474,150.0,0.00011199,2]
[331293300,1720190406680,150.0,0.00011199,2]
[331293301,1720190407045,150.0,0.00011199,2]
[331293302,1720190407250,150.0,0.00011199,2]
[331293303,1720190407433,150.0,0.00011199,2]
[331293304,1720190408461,150.0,0.00011199,2]
[331293305,1720190408961,150.0,0.00011199,2]
[331293306,1720190409681,150.0,0.00011199,2]
[331293307,1720190409740,158.88985679,0.00011199,2]
[331293308,1720190412088,155.42527697,0.00011199,2]
[331293309,1720190412362,2557.97699715,0.00011199,2]
[331293311,1720190419038,348.66825616,0.00011199,2]
[331293312,1720190421942,754.48160921,0.00011199,2]
[331293313,1720190422789,222.22403384,0.00011199,2]
[331293314,1720190423517,959.95737594,0.00011199,2]
[331293315,1720190424683,206.17373388,0.00011199,2]
[331293316,1720190426194,216.4779434,0.00011199,2]
[331293318,1720190435206,330.7805851,0.00011199,2]
[331293319,1720190436403,200.12318706,0.00011199,2]
[331293320,1720190439561,411.76816348,0.00011199,2]
[331293321,1720190439898,155.24207177,0.00011199,2]
[331293322,1720190440319,1135.26906695,0.00011199,2]
[331293324,1720190464824,10538.83870672,0.00011199,2]
[331293325,1720190470724,411.76816348,0.00011199,2]
[331293326,1720190489230,944.91389166,0.00011199,2]
[331293327,1720190497122,1367.30728763,0.00011199,2]
[331293328,1720190498659,150.0,0.00011199,2]
[331293329,1720190498683,150.0,0.00011199,2]
[331293330,1720190498704,4161.53872289,0.00011199,2]
[331293331,1720190508033,348.66825616,0.00011199,2]
[331293332,1720190508077,2557.97699715,0.00011199,2]
[331293333,1720190519276,150.0,0.00011199,2]
[331293334,1720190519304,150.0,0.00011199,2]
[331293335,1720190519330,659.95737594,0.00011199,2]
[331293336,1720190528975,260.6444492,0.00011199,2]
[331293337,1720190537472,2557.97699715,0.00011199,2]
[331293338,1720190562242,155.10604314,0.00011199,2]
[331293339,1720190597029,150.0,0.00011199,2]
[331293340,1720190597054,186.73887455,0.00011199,2]
[331293341,1720190597079,5264.93463371,0.00011199,2]
[331293343,1720190608188,959.95737594,0.00011199,2]
[331293344,1720190610236,3111.08002322,0.00011199,2]
[331293345,1720190615701,348.66825616,0.00011199,2]
[331293346,1720190640801,3111.08002322,0.00011199,2]
[331293347,1720190649437,2557.97699715,0.00011199,2]
[331293348,1720190650320,2832.1472324,0.00011199,2]
[331293349,1720190658864,5797.11331304,0.00011199,2]
[331293350,1720190664001,3073.2177715,0.00011199,2]
[331293351,1720190670664,1903.65279599,0.00011199,2]
[331293352,1720190701177,4452.88363868,0.00011199,2]
[331293353,1720190703762,959.95737594,0.00011199,2]
[331293354,1720190707982,1399.28371467,0.00011199,7]
[331293356,1720190713759,348.66825616,0.00011199,2]
[331293359,1720190743124,348.66825616,0.00011199,2]
[331293360,1720190745063,1135.44204549,0.00011199,2]
[331293361,1720190746670,2204.95837318,0.00011199,2]
[331293362,1720190761920,-166.71871601,0.00012273,2]
[331293363,1720190762283,-201.42918999,0.00012302,2]
[331293364,1720190762645,-1071.24766976,0.00012302,2]
[331293365,1720190762689,-660.95341684,0.00012302,2]
[331293366,1720190762728,-533.36085656,0.00012302,2]
[331293367,1720190762752,-366.07943095,0.00012314,2]
[331293368,1720190762783,-515.93,0.00012885,2]
[331293369,1720190762816,-600.30000237,0.00013,2]
[331293370,1720190762999,-150.0,0.00013014,2]
[331293371,1720190763778,-3077.33409396,0.0001305,2]
[331293372,1720190764520,-169.66166939,0.00013128,2]
[331293373,1720190765531,-206.0809587,0.00013128,2]
[331293374,1720190766228,-1500.0,0.00013128,2]
[331293375,1720190767185,-625.93982727,0.00013128,2]
[331293376,1720190768149,-5591.48445004,0.00013472,2]
[331293377,1720190769416,-916.98899315,0.00013472,2]
[331293378,1720190770040,-1021.84008689,0.00013472,2]
[331293379,1720190770615,-3111.08002322,0.00013472,2]
[331293380,1720190770953,-1888.56895153,0.00013516,2]
[331293381,1720190771325,-753.96346313,0.00013543,2]
[331293382,1720190771353,-150.0,0.00013573,2]
[331293383,1720190771400,-3821.03820024,0.00013574,2]
[331293384,1720190772089,2557.97699715,0.00011199,2]
[331293385,1720190789122,959.95737594,0.00011199,2]
[331293387,1720190849361,2557.97699715,0.00011199,2]
[331293388,1720190853431,348.66825616,0.00011199,2]
[331293389,1720190904335,7893.66864256,0.00011199,2]
[331293390,1720190929213,959.95737594,0.00011199,2]
[331293391,1720190935551,1105.30301727,0.00011199,2]
[331293392,1720190940234,959.95737594,0.00011199,2]
[331293393,1720190949038,347.73429656,0.00011199,2]
[331293398,1720190977653,2990.80373008,0.00011199,2]
[331293403,1720191008606,7257.73646666,0.00011199,2]
[331293407,1720191022113,1340.01774724,0.00011199,2]
[331293408,1720191022574,2582.17637764,0.00011199,2]
[331293412,1720191032167,-300.0,0.00013127,2]
[331293413,1720191032179,-136.82742555,0.00013128,2]
[331293414,1720191032197,-313.57105066,0.00013128,2]
[331293415,1720191032212,-361.9149352,0.00013128,2]
[331293417,1720191032226,-1004.57050701,0.00013128,2]
[331293419,1720191032236,-226.70396084,0.00013128,2]
[331293421,1720191032248,-625.93982727,0.00013128,2]
[331293422,1720191032265,-512.2883,0.00013322,2]
[331293423,1720191032276,-2287.41909908,0.00013322,2]
[331293424,1720191032286,-250.0,0.00013422,2]
[331293425,1720191032295,-14284.0,0.00013448,2]
[331293426,1720191032305,-220.0,0.00013471,2]
[331293427,1720191032314,-524.03925994,0.00013472,2]
[331293428,1720191032327,-150.0,0.00013488,2]
[331293429,1720191032338,-150.0,0.00013573,2]
[331293430,1720191032353,-52142.96446656,0.00013574,2]
[331293431,1720191032363,-3732.42,0.00013574,2]
[331293432,1720191032372,-1396.78313823,0.00013574,2]
[331293433,1720191032382,-159.57,0.00013791,2]
[331293434,1720191032391,-1000.0,0.00013791,2]
[331293435,1720191032400,-614.53,0.00013842,2]
[331293436,1720191032409,-939.49113361,0.00013849,2]
[331293437,1720191032418,-627.12487314,0.00013899,2]
[331293438,1720191032428,-283.914,0.000139,2]
[331293439,1720191032437,-1197.953,0.000139,2]
[331293440,1720191032449,-9423.25052432,0.000139,2]
[331293441,1720191032463,-11497.50529036,0.000139,2]
[331293442,1720191032474,-3834.18185265,0.000139,2]
[331293443,1720191032485,-545.15058203,0.000139,2]
[331293444,1720191032499,-1190.99,0.000139,2]
[331293445,1720191032668,-276.15184313,0.00013128,2]
[331293446,1720191032678,-1020.82961534,0.000139,2]
[331293453,1720191039093,-7903.4832353,0.000139,2]
[331293454,1720191039103,-150.0,0.00013987,2]
[331293455,1720191039113,-500.0,0.00013999,2]
[331293456,1720191039125,-269.99083167,0.00013999,2]
[331293457,1720191039135,-500.0,0.00013999,2]
[331293458,1720191039145,-380.08284666,0.00013999,2]
[331293459,1720191039156,-428.36,0.00013999,2]
[331293460,1720191039166,-1265.01058332,0.00013999,2]
[331293461,1720191039176,-6169.71443715,0.00014,2]
[331293462,1720191039192,-9553.154996,0.00014,2]
[331293463,1720191039207,-9084.2900005,0.00014,2]
[331293464,1720191039222,-13724.235,0.00014,2]
[331293465,1720191039237,-1384.75,0.00014,2]
[331293466,1720191039254,-5915.5,0.00014,2]
[331293467,1720191039437,-428.61941707,0.00014,2]
[331293468,1720191039452,-25922.71608381,0.00014,2]
[331293469,1720191039797,-15918.24189672,0.00014,2]
[331293470,1720191039887,-310.24010705,0.00014,2]
[331293471,1720191039902,-1868.27549813,0.00014,2]
[331293473,1720191041160,-314.37445918,0.00014,2]
[331293476,1720191041175,-1385.97688466,0.00014,2]
[331293478,1720191041187,-359.48000001,0.00014,2]
[331293480,1720191041199,-469.26882658,0.00014,2]
[331293483,1720191041211,-287831.80516301,0.00014,2]
[331293485,1720191041223,-627.83,0.00014,2]
[331293488,1720191041238,-268.05381055,0.00014,2]
[331293490,1720191041251,-363.877812,0.00014,2]
[331293492,1720191041262,-570.3824331,0.00014,2]
[331293494,1720191041274,-730.35999999,0.00014,2]
[331293570,1720191043161,-639578.20707779,0.00014,2]
[331293578,1720191043274,-712.04599,0.00014,2]
[331293580,1720191043285,-312.14909766,0.00014,2]
[331293590,1720191045064,-1506.45551478,0.00014,2]
[331293601,1720191046741,-900.81792379,0.00014,2]
[331293602,1720191046754,-2393.00621157,0.00014,2]
[331293603,1720191046765,-769.02819339,0.00014,2]
[331293604,1720191047769,-1616.33502083,0.00014,2]
[331293605,1720191072892,460.89,0.00025,60]
[331293608,1720191316967,1225.15243146,0.00011199,2]
[331293610,1720191346733,1780.84432839,0.00011199,2]
[331293611,1720191359955,669.12331295,0.00011199,2]
[331293613,1720191382112,644.51027312,0.00011199,2]
[331293614,1720191394668,10994.48154505,0.00011199,2]
[331293615,1720191432945,423.00446406,0.00011199,2]
[331293616,1720191467667,626.02811138,0.00011199,2]
[331293617,1720191485864,385.38086979,0.00011199,2]
[331293620,1720191621226,10994.48154505,0.00011199,2]
[331293622,1720191778332,2006.95019857,0.00011199,2]
[331293624,1720191854363,9086.98943389,0.00011199,2]
[331293625,1720191880329,356.26716225,0.00011199,2]
[331293627,1720191955609,19606.28873825,0.00011199,2]
[331293628,1720191963970,435.4959297,0.00011199,2]
[331293629,1720192041293,155.0,0.00011199,2]
[331293630,1720192140281,888.54230009,0.00011199,2]
[331293631,1720192145555,2005.91760467,0.00011199,2]
[331293632,1720192162873,166.95,0.0001062,2]
[331293638,1720192236089,-397.82076205,0.00011704,2]
[331293640,1720192236103,-198.98923795,0.00011704,2]
[331293642,1720192236112,-72.06704907,0.00012873,2]
[331293644,1720192236124,-3189.35,0.00012873,2]
[331293647,1720192236136,-5811.1276898,0.00012873,2]
[331293649,1720192236148,-6357.76872532,0.00012873,2]
[331293651,1720192236157,-173.59426351,0.00013128,2]
[331293653,1720192236166,-167.56,0.00013243,2]
[331293655,1720192236176,-158.62,0.00013278,2]
[331293657,1720192236187,-142.45701117,0.00013325,2]
[331293659,1720192236198,-57.54298883,0.00013325,2]
[331293661,1720192236208,-840.0,0.00013331,2]
[331293662,1720192236218,-300.0,0.00013466,2]
[331293663,1720192236228,-131.7410389,0.00013467,2]
[331293664,1720192236240,-3000.0,0.00013467,2]
[331293665,1720192236252,-11245.9089611,0.00013467,2]
[331293666,1720192236263,-150.0,0.00013488,2]
[331293667,1720192236273,-944.47198158,0.00013516,2]
[331293668,1720192236284,-155.0,0.00013516,2]
[331293669,1720192236296,-155.0,0.00013516,2]
[331293670,1720192236307,-250.0,0.00013563,2]
[331293671,1720192236317,-1190.99,0.00013699,5]
[331293672,1720192236327,-307.26,0.00013699,2]
[331293673,1720192236336,-177.16,0.00013713,2]
[331293674,1720192236346,-14929.43624541,0.0001386,2]
[331293675,1720192236356,-278.43186,0.0001386,2]
[331293676,1720192236365,-509.13242177,0.00013864,2]
[331293677,1720192236375,-250.0,0.00013897,2]
[331293678,1720192236386,-2375.7192167,0.00013899,2]
[331293679,1720192236395,-1088.6681,0.000139,2]
[331293680,1720192236404,-936.39755664,0.000139,2]
[331293681,1720192236417,-865.31617129,0.000139,2]
[331293682,1720192236429,-3061.22387207,0.000139,2]
[331293683,1720192236439,-1647.44876845,0.000139,2]
[331293684,1720192236448,-1647.44876844,0.000139,2]
[331293685,1720192236458,-596.81,0.00013968,2]
[331293686,1720192236467,-228.843835,0.00013973,2]
[331293687,1720192236477,-2000.0,0.00013973,3]
[331293688,1720192236487,-150.0,0.00013999,2]
[331293689,1720192236496,-40065.35414046,0.00014,2]
[331293690,1720192236508,-270.26587227,0.00014,2]
[331293691,1720192236537,-280.39621552,0.00014,2]
[331293692,1720192236548,-1699.91277175,0.00014,2]
[331293693,1720192236957,-3799.23896108,0.00014,2]
[331293730,1720192239079,-275.96458678,0.00014,2]
[331293731,1720192239093,-544.57763909,0.00014,2]
[331293732,1720192239107,-11273.0,0.00014,2]
[331293733,1720192239119,-620.0,0.00014,2]
[331293735,1720192240564,-698.50638546,0.00014,2]
[331293740,1720192240577,-9080.8951318,0.00014,2]
[331293741,1720192240589,-290.881602,0.00014,2]
[331293742,1720192241966,-139639.03875506,0.00014,2]
[331293743,1720192241978,-15261.27639857,0.00014,2]
[331293744,1720192243372,-835.49395484,0.00014,2]
[331293750,1720192243384,-1730.84596,0.00014,2]
[331293756,1720192243399,-38037.51809323,0.00014,2]
[331293760,1720192243411,-4490.73863177,0.00014,2]
[331293764,1720192243423,-894.87000001,0.00014,2]
[331293767,1720192243435,-9401.14543504,0.00014,2]
[331293772,1720192243448,-955.27057878,0.00014,2]
[331293778,1720192243461,-952.57554,0.00014,2]
[331293782,1720192243474,-203323.46058625,0.00014,2]
[331293787,1720192243485,-2013.124334,0.00014,2]
[331293792,1720192243497,-9210.76,0.00014,2]
[331293796,1720192243508,-300.0495264,0.00014,2]
[331293800,1720192243521,-1235.47644,0.00014,2]
[331293804,1720192243532,-357.77198037,0.00014,2]
[331293808,1720192243547,-281.76,0.00014,2]
[331293811,1720192243558,-328.92787868,0.00014,2]
[331293814,1720192243571,-1001.49892002,0.00014,2]
[331293816,1720192243582,-350.15917573,0.00014,2]
[331293818,1720192243594,-3325.0,0.00014,2]
[331293821,1720192243606,-5089.65075638,0.00014,2]
[331293911,1720192244794,-500.32600203,0.00014,2]
[331293912,1720192244806,-993.12736041,0.00014,2]
[331293914,1720192244817,-431.87162948,0.00014,2]
[331293915,1720192244829,-1596.30903577,0.00014,2]
[331293916,1720192246787,-4902.38737237,0.00014,2]
[331293917,1720192246805,-687.85090234,0.00014,2]
[331293918,1720192246817,-37474.24448721,0.00014,2]
[331293919,1720192246831,-327.12129972,0.00014,2]
[331293920,1720192247010,-2984.75,0.00014,2]
[331293921,1720192247021,-25609.99941106,0.00014,2]
[331293936,1720192255972,-150.0,0.0001391,2]
[331293938,1720192255982,-215.5699721,0.00013995,2]
[331293940,1720192255992,-1045.29397183,0.00014,2]
[331293943,1720192256006,-2242.80704739,0.00014,2]
[331293945,1720192256018,-626.86484445,0.00014,2]
[331293946,1720192256030,-4005.64457662,0.00014,2]
[331293951,1720192320364,2811.08286295,0.00011199,2]
[331293960,1720192332318,2375.7192167,0.00011199,2]
[331293961,1720192337680,4626.76923557,0.00011199,2]
[331293963,1720192390092,42490.53924594,0.00011199,2]
[331293964,1720192412046,616.98130237,0.00011199,2]
[331293965,1720192438336,295.46908239,0.00011199,2]
[331293966,1720192486081,165.177188,0.00011199,2]
[331293967,1720192488880,169.57789502,0.00011199,2]
[331293968,1720192493885,364.53204994,0.00011199,2]
[331293971,1720192625450,2375.7192167,0.00011199,2]
[331293972,1720192657078,754.30269888,0.00011199,2]
[331293973,1720192714472,199.66200269,0.00011199,2]
[331293974,1720192752849,626.98777792,0.00011199,2]
[331293976,1720192764960,483.62526826,0.00011199,2]
[331293977,1720192777094,276.21822266,0.00011199,2]
[331293978,1720192783149,626.98777792,0.00011199,2]
[331293979,1720192783664,156.72973374,0.00011199,2]
[331293980,1720192787672,169.35657518,0.00011199,2]
[331293981,1720192788045,254.14338377,0.00011199,2]
[331293982,1720192788831,276.21822266,0.00011199,2]
[331293983,1720192789715,179.8251013,0.00011199,2]
[331293984,1720192793964,249.86642047,0.00011199,2]
[331293985,1720192822115,156.18679383,0.00011199,2]
[331293986,1720192827132,155.0,0.00011199,2]
[331293987,1720192830135,159.02608203,0.00011199,2]
[331293988,1720192874873,3079.41143443,0.00011199,2]
[331293989,1720192897051,625.7836933,0.00011199,2]
[331293990,1720192971619,14394.88404306,0.00011199,2]
[331293991,1720192992638,2574.14215703,0.00011199,2]
[331293992,1720193013618,640.63,0.00010806,2]
[331293993,1720193056695,2557.1335285,0.00011199,2]
[331293994,1720193103694,346.55290245,0.00011199,2]
[331293996,1720193162670,237.3584633,0.00011199,2]
[331293997,1720193177504,2375.40634291,0.00011199,2]
[331293998,1720193200056,483.3927836,0.00011199,2]
[331293999,1720193231323,155.30947103,0.00011199,2]
[331294000,1720193234498,955.73097325,0.00011199,2]
[331294001,1720193236561,15430.31346419,0.00011199,2]
[331294002,1720193245075,155.0,0.00011199,2]
[331294003,1720193252338,587.98557486,0.00011199,2]
[331294004,1720193255350,310.0,0.00011199,2]
[331294005,1720193279837,155.74867956,0.00011199,2]
[331294006,1720193288109,276.21822266,0.00011199,2]
[331294007,1720193297696,155.0,0.00011199,2]
[331294008,1720193300569,155.25540196,0.00011199,2]
[331294012,1720193324245,163.84671005,0.00011199,2]
[331294013,1720193331219,10515.60566167,0.00011199,2]
[331294021,1720193427444,5593.62205483,0.00011199,2]
[331294023,1720193434377,-1075.22218458,0.00012302,2]
[331294024,1720193434387,-2846.0732779,0.00012674,2]
[331294027,1720193434399,-7931.7767221,0.00012674,2]
[331294030,1720193434408,-208.14660464,0.00012684,2]
[331294046,1720193437846,-41.85339536,0.00012684,2]
[331294047,1720193437859,-250.0,0.00012702,2]
[331294048,1720193437873,-2368.45,0.00012711,2]
[331294049,1720193437887,-300.0,0.00012715,2]
[331294050,1720193437896,-2201.27,0.00012725,2]
[331294051,1720193437906,-168.1,0.00012731,2]
[331294052,1720193437915,-1000.0,0.00012753,2]
[331294053,1720193437924,-150.17,0.00012773,2]
[331294054,1720193437934,-499.99,0.00012773,2]
[331294055,1720193437945,-173.47,0.00012774,2]
[331294056,1720193437955,-783.63,0.00012774,2]
[331294057,1720193437965,-370.2,0.00012774,2]
[331294058,1720193437975,-150.17,0.00012868,2]
[331294059,1720193437985,-2834.17764247,0.00012873,2]
[331294060,1720193437996,-935.99632994,0.00012873,2]
[331294061,1720193438008,-4998.39904866,0.00012873,2]
[331294062,1720193438020,-146.16436815,0.00012873,2]
[331294063,1720193438030,-1955.44,0.00012919,2]
[331294064,1720193438040,-150.17,0.00012963,2]
[331294065,1720193438050,-150.17,0.00013058,2]
[331294066,1720193438059,-640.63,0.0001307,2]
[331294067,1720193438069,-1547.58956559,0.00013128,2]
[331294068,1720193438079,-1156.82676208,0.00013128,2]
[331294069,1720193438095,-150.17,0.00013153,2]
[331294070,1720193438104,-150.17,0.00013248,2]
[331294071,1720193438114,-150.17,0.00013343,2]
[331294072,1720193438123,-150.17,0.00013438,2]
[331294073,1720193438133,-150.0,0.00013488,2]
[331294074,1720193438142,-276.21822266,0.00013543,2]
[331294075,1720193438152,-626.98777792,0.00013543,2]
[331294076,1720193438162,-150.0,0.00013574,2]
[331294077,1720193438171,-200.0,0.00013692,2]
[331294078,1720193438181,-370.62,0.00013699,2]
[331294079,1720193438192,-150.0,0.00013699,2]
[331294080,1720193438202,-953.03121734,0.00013701,2]
[331294081,1720193438212,-150.0,0.00013701,2]
[331294082,1720193438222,-1500.0,0.00013703,2]
[331294084,1720193438232,-150.0,0.00013704,2]
[331294086,1720193438242,-150.0,0.00013705,2]
[331294088,1720193438251,-1516.59942044,0.0001371,2]
[331294090,1720193438262,-150.0,0.0001371,2]
[331294092,1720193438279,-150.0,0.00013711,2]
[331294094,1720193438289,-150.0,0.00013713,2]
[331294096,1720193438299,-150.0,0.00013713,2]
[331294098,1720193438311,-150.0,0.00013722,2]
[331294100,1720193438320,-150.0,0.00013722,2]
[331294102,1720193438330,-150.0,0.00013728,2]
[331294104,1720193438342,-150.0,0.00013729,2]
[331294105,1720193438352,-150.0,0.00013731,2]
[331294106,1720193438362,-179.37813458,0.00013732,2]
[331294107,1720193438371,-150.0,0.00013734,2]
[331294108,1720193438381,-150.0,0.00013737,2]
[331294109,1720193438390,-150.0,0.00013738,2]
[331294110,1720193438400,-150.0,0.00013738,2]
[331294111,1720193438410,-150.0,0.00013741,2]
[331294112,1720193438420,-150.0,0.00013741,2]
[331294113,1720193438430,-150.0,0.00013744,2]
[331294114,1720193438440,-150.0,0.00013746,2]
[331294115,1720193438451,-150.0,0.00013747,2]
[331294116,1720193438461,-150.0,0.00013748,2]
[331294117,1720193438471,-150.0,0.00013749,2]
[331294118,1720193438481,-150.0,0.00013749,2]
[331294119,1720193438491,-150.0,0.00013751,2]
[331294120,1720193438500,-150.0,0.00013751,2]
[331294121,1720193438510,-154.27253941,0.00013753,2]
[331294122,1720193438520,-150.0,0.00013758,2]
[331294123,1720193438530,-300.0,0.0001376,2]
[331294124,1720193438540,-300.0,0.00013761,2]
[331294125,1720193438550,-150.0,0.00013761,2]
[331294126,1720193438560,-1500.0,0.00013761,2]
[331294127,1720193438570,-150.0,0.00013764,2]
[331294128,1720193438580,-150.0,0.00013766,2]
[331294129,1720193438594,-150.0,0.00013767,2]
[331294130,1720193438604,-1500.0,0.00013768,2]
[331294131,1720193438615,-150.0,0.00013769,2]
[331294132,1720193438624,-1500.0,0.0001377,2]
[331294133,1720193438634,-150.0,0.00013775,2]
[331294134,1720193438644,-1500.0,0.00013777,2]
[331294135,1720193438655,-150.0,0.00013778,2]
[331294136,1720193438665,-150.0,0.00013779,2]
[331294137,1720193438675,-150.0,0.00013779,2]
[331294138,1720193438686,-150.0,0.00013781,2]
[331294139,1720193438695,-150.0,0.00013786,2]
[331294140,1720193438705,-150.0,0.00013789,2]
[331294141,1720193438715,-1500.0,0.00013792,2]
[331294142,1720193438725,-150.0,0.00013794,2]
[331294143,1720193438735,-150.0,0.00013796,2]
[331294144,1720193438748,-300.0,0.00013798,2]
[331294145,1720193438759,-150.0,0.00013801,2]
[331294146,1720193438770,-150.0,0.00013806,2]
[331294147,1720193438780,-150.0,0.00013806,2]
[331294148,1720193438790,-150.0,0.00013808,2]
[331294149,1720193438800,-150.0,0.0001381,2]
[331294150,1720193438810,-150.0,0.00013813,2]
[331294151,1720193438820,-150.0,0.00013814,2]
[331294152,1720193438830,-150.0,0.00013816,2]
[331294153,1720193438844,-1462.03214128,0.00013817,2]
[331294154,1720193438854,-150.0,0.00013817,2]
[331294155,1720193438864,-1500.0,0.00013819,2]
[331294156,1720193438874,-1500.0,0.00013823,2]
[331294157,1720193438885,-150.0,0.00013824,2]
[331294158,1720193438895,-150.0,0.00013828,2]
[331294159,1720193438905,-150.0,0.0001383,2]
[331294160,1720193438915,-150.0,0.00013832,2]
[331294161,1720193438924,-150.0,0.00013836,2]
[331294162,1720193438933,-150.0,0.00013837,2]